bitfinex/quotes_SOLUSD_20241102
["timestamp","ask_amount","ask_price","bid_price","bid_amount"]
[1730531421821,17.18683545,166.84,166.78,11.06764545]
[1730531422022,11.06764545,166.83,166.78,11.06764545]
[1730531423753,11.06764545,166.83,166.78,17.06324545]
[1730531423942,17.18683545,166.84,166.78,17.06324545]
[1730531425226,17.18683545,166.84,166.79,11.06764545]
[1730531427240,17.18683545,166.84,166.78,17.06324545]
[1730531431443,11.06764545,166.83,166.77,26.05744545]
[1730531432442,11.06764545,166.83,166.77,32.05364545]
[1730531433031,17.06194545,166.83,166.77,32.05364545]
[1730531434624,11.06764545,166.82,166.77,32.05364545]
[1730531434838,11.06764545,166.81,166.75,11.06764545]
[1730531435022,11.06764545,166.8,166.75,5.9969]
[1730531438427,5.9955,166.79,166.75,5.9969]
[1730531438924,5.9955,166.79,166.75,17.06454545]
[1730531443257,5.9955,166.79,166.75,5.9969]
[1730531450031,21.7539,166.81,166.76,11.06764545]
[1730531450534,17.06214545,166.82,166.76,11.06764545]
[1730531450729,17.06214545,166.82,166.75,20.9894]
[1730531450730,17.06154545,166.84,166.78,11.06764545]
[1730531451854,17.06154545,166.84,166.78,17.06324545]
[1730531457064,11.06764545,166.83,166.78,17.06324545]
[1730531457959,17.06174545,166.83,166.78,17.06324545]
[1730531460675,5.9941,166.83,166.79,11.06764545]
[1730531463156,5.9941,166.83,166.79,17.06304545]
[1730531470476,5.9941,166.83,166.78,11.06764545]
[1730531471842,11.06764545,166.84,166.79,11.06764545]
[1730531472169,11.06764545,166.87,166.81,11.06764545]
[1730531472545,5.9932,166.86,166.81,11.06764545]
[1730531472746,5.9932,166.86,166.82,11.06764545]
[1730531472947,17.06034545,166.87,166.82,11.06764545]
[1730531474554,17.06034545,166.87,166.81,32.04924545]
[1730531475965,17.06034545,166.87,166.82,11.06764545]
[1730531479272,11.06764545,166.88,166.82,11.06764545]
[1730531479571,5.9923,166.88,166.83,11.06764545]
[1730531480549,17.05994545,166.88,166.82,11.06764545]
[1730531481769,17.05994545,166.88,166.82,17.06194545]
[1730531482067,11.06764545,166.87,166.82,17.06194545]
[1730531483559,17.06034545,166.87,166.82,17.06194545]
[1730531484073,11.06764545,166.84,166.78,32.05334545]
[1730531484986,11.06764545,166.83,166.78,20.9857]
[1730531485345,11.06764545,166.82,166.78,14.9898]
[1730531486160,11.06764545,166.82,166.78,20.9857]
[1730531486349,11.06764545,166.82,166.77,6.24178759]
[1730531486566,11.06764545,166.82,166.77,12.23778759]
[1730531487260,11.06764545,166.82,166.77,27.22848759]
[1730531488474,11.06764545,166.81,166.77,21.23248759]
[1730531488656,11.06764545,166.8,166.77,14.9907]
[1730531489577,11.06764545,166.79,166.74,38.29649425]
[1730531489782,11.06764545,166.78,166.74,27.2288488]
[1730531490756,11.06764545,166.78,166.74,20.9902]
[1730531491484,11.06764545,166.79,166.74,20.9902]
[1730531492477,11.06764545,166.78,166.74,14.9932]
[1730531493284,11.06764545,166.77,166.74,14.9932]
[1730531496383,17.06374545,166.78,166.74,14.9932]
[1730531497477,21.6217,166.79,166.75,11.06764545]
[1730531498191,15.6261,166.79,166.75,11.06764545]
[1730531498384,15.6261,166.79,166.74,26.06084545]
[1730531499286,15.6261,166.79,166.74,32.05814545]
[1730531500490,26.69374545,166.79,166.74,32.05814545]
[1730531501986,11.06764545,166.78,166.74,20.9905]
[1730531503262,11.06764545,166.78,166.74,14.9932]
[1730531505667,17.06364545,166.78,166.74,14.9932]
[1730531505872,11.06764545,166.77,166.74,14.9932]
[1730531507687,11.06764545,166.78,166.74,14.9932]
[1730531514708,32.68944545,166.79,166.74,14.9932]
[1730531515009,32.68944545,166.79,166.74,26.06084545]
[1730531515198,32.68944545,166.79,166.74,32.05814545]
[1730531515505,15.6261,166.79,166.74,32.05814545]
[1730531520589,38.71094545,166.83,166.77,11.06764545]
[1730531520799,38.71094545,166.83,166.78,11.06764545]
[1730531521606,38.71094545,166.83,166.78,17.06354545]
[1730531524608,27.6433,166.83,166.78,17.06354545]
[1730531531216,21.6492,166.83,166.79,11.06764545]
[1730531531513,0.12549,166.84,166.8,11.06764545]
[1730531532017,0.12549,166.84,166.79,11.06764545]
[1730531532418,6.11929,166.84,166.79,17.06304545]
[1730531533418,0.12549,166.84,166.8,11.06764545]
[1730531535122,0.12549,166.84,166.8,17.06274545]
[1730531535329,5.9935,166.85,166.81,11.06764545]
[1730531535543,23.902374,166.86,166.81,11.06764545]
[1730531535813,29.895474,166.86,166.81,11.06764545]
[1730531538710,29.895474,166.86,166.81,17.06244545]
[1730531540021,40.96311945,166.86,166.81,17.06244545]
[1730531540227,40.96311945,166.86,166.8,11.06764545]
[1730531541611,40.96311945,166.86,166.8,17.06254545]
[1730531542415,11.06764545,166.85,166.8,17.06254545]
[1730531542617,40.96311945,166.86,166.81,11.06764545]
[1730531546213,0.12549,166.86,166.82,17.06204545]
[1730531548810,0.12549,166.86,166.81,11.06764545]
[1730531550533,0.12549,166.86,166.82,5.9944]
[1730531555520,39.02534545,166.87,166.82,32.04824545]
[1730531555828,33.03264545,166.87,166.82,32.04824545]
[1730531556910,33.03264545,166.87,166.81,11.06764545]
[1730531561226,33.03264545,166.87,166.82,5.9944]
[1730531561405,33.03264545,166.87,166.78,11.06764545]
[1730531561406,11.06764545,166.84,166.78,11.06764545]
[1730531561604,11.06764545,166.83,166.78,26.05724545]
[1730531562167,11.06764545,166.83,166.78,14.9896]
[1730531562532,11.06764545,166.83,166.78,32.05314545]
[1730531571531,11.06764545,166.82,166.78,20.9855]
[1730531577718,17.06184545,166.83,166.78,20.9855]
[1730531578039,17.06184545,166.83,166.78,26.05724545]
[1730531579443,17.06184545,166.83,166.78,32.05314545]
[1730531583045,5.9942,166.83,166.78,32.05314545]
[1730531583248,5.9942,166.83,166.79,11.06764545]
[1730531587050,5.9942,166.83,166.78,26.05724545]
[1730531588729,5.9942,166.83,166.78,32.05314545]
[1730531590238,17.06184545,166.83,166.78,14.9896]
[1730531591950,17.06184545,166.83,166.78,20.9855]
[1730531593271,87.06184545,166.83,166.78,20.9855]
[1730531593454,11.19313545,166.82,166.78,14.9896]
[1730531595353,17.18753545,166.82,166.78,14.9896]
[1730531597333,6.11989,166.82,166.78,14.9896]
[1730531598744,6.11989,166.82,166.78,32.05314545]
[1730531600138,0.12549,166.83,166.79,11.06764545]
[1730531601148,0.12549,166.83,166.79,17.06314545]
[1730531601966,0.12549,166.83,166.79,5.9955]
[1730531603065,6.11959,166.83,166.79,5.9955]
[1730531618361,6.11959,166.83,166.78,26.05724545]
[1730531618563,6.11959,166.83,166.78,32.05304545]
[1730531625798,76.11959,166.83,166.78,14.9896]
[1730531626384,87.18723545,166.83,166.78,14.9896]
[1730531627177,76.11959,166.83,166.78,26.05724545]
[1730531631783,76.11959,166.83,166.78,14.9896]
[1730531632388,76.11959,166.83,166.78,20.9855]
[1730531634586,76.11959,166.83,166.78,26.05724545]
[1730531636581,76.11959,166.83,166.78,14.9896]
[1730531637182,76.11959,166.83,166.78,26.05724545]
[1730531637575,76.11959,166.83,166.78,14.9896]
[1730531638469,34.84452945,166.82,166.76,6.26433635]
[1730531638766,11.19313545,166.8,166.74,17.06464545]
[1730531639189,11.06764545,166.79,166.74,17.06464545]
[1730531639763,11.06764545,166.79,166.74,5.997]
[1730531639764,17.06334545,166.79,166.74,5.997]
[1730531640797,17.06334545,166.79,166.74,17.06464545]
[1730531641888,34.97001945,166.78,166.73,11.06764545]
[1730531642102,11.06764545,166.77,166.71,17.06604545]
[1730531642274,0.12549,166.76,166.71,17.06604545]
[1730531642515,6.0114,166.77,166.73,11.06764545]
[1730531642781,5.9957,166.79,166.76,11.06764545]
[1730531643172,5.9957,166.79,166.75,11.06764545]
[1730531644507,29.897574,166.8,166.75,11.06764545]
[1730531645308,40.96521945,166.8,166.75,11.06764545]
[1730531648310,110.96521945,166.8,166.75,11.06764545]
[1730531650006,110.96521945,166.8,166.74,11.06764545]
[1730531654601,11.06764545,166.79,166.74,11.06764545]
[1730531654805,5.9959,166.78,166.74,11.06764545]
[1730531657084,0.12549,166.77,166.73,11.06764545]
[1730531658512,6.12199,166.77,166.73,11.06764545]
[1730531662088,6.12199,166.77,166.74,11.06764545]
[1730531663691,6.12199,166.77,166.73,11.06764545]
[1730531666818,6.12199,166.77,166.72,11.06764545]
[1730531672409,6.12199,166.77,166.73,11.06764545]
[1730531678704,6.12199,166.77,166.72,11.06764545]
[1730531683919,93.776884,166.8,166.75,11.06764545]
[1730531684253,5.9955,166.79,166.75,11.06764545]
[1730531685425,5.9955,166.79,166.76,11.06764545]
[1730531686606,22.0509,166.82,166.77,11.06764545]
[1730531686802,22.0509,166.82,166.78,11.06764545]
[1730531690043,22.0509,166.82,166.77,11.06764545]
[1730531691614,0.12549,166.81,166.76,11.06764545]
[1730531692739,6.12059,166.81,166.76,11.06764545]
[1730531694630,6.12059,166.81,166.77,11.06764545]
[1730531700317,6.12059,166.81,166.76,5.9966]
[1730531700318,6.12059,166.81,166.76,11.06764545]
[1730531701420,6.12059,166.81,166.77,11.06764545]
[1730531702938,104.84452945,166.8,166.75,11.06764545]
[1730531703147,0.12549,166.79,166.75,11.06764545]
[1730531703322,11.19313545,166.79,166.74,32.05784545]
[1730531704046,11.19313545,166.79,166.74,14.9932]
[1730531704835,5.9959,166.78,166.74,14.9932]
[1730531709538,0.12549,166.77,166.72,11.06764545]
[1730531709741,5.9966,166.76,166.72,11.06764545]
[1730531710938,17.06424545,166.76,166.71,11.06764545]
[1730531711151,0.12549,166.75,166.71,11.06764545]
[1730531711825,23.902374,166.75,166.71,11.06764545]
[1730531712025,34.97001945,166.75,166.69,23.31633739]
[1730531712231,11.06764545,166.74,166.69,17.06654545]
[1730531712434,81.06764545,166.74,166.69,11.06764545]
[1730531712650,11.19313545,166.73,166.68,11.06764545]
[1730531713148,5.998,166.72,166.68,11.06764545]
[1730531717024,5.998,166.72,166.68,17.06714545]
[1730531718731,5.998,166.72,166.67,26.06704545]
[1730531718732,87.06564545,166.72,166.67,26.06704545]
[1730531718936,0.12549,166.71,166.68,11.06764545]
[1730531719650,11.19313545,166.71,166.67,20.9992]
[1730531720356,11.19313545,166.71,166.66,11.06764545]
[1730531721124,5.9988,166.7,166.66,11.06764545]
[1730531725646,5.9988,166.7,166.67,11.06764545]
[1730531725825,0.12549,166.71,166.68,11.06764545]
[1730531727132,22.4827,166.73,166.69,11.06764545]
[1730531727351,0.12549,166.72,166.69,11.06764545]
[1730531728830,0.12549,166.72,166.68,17.06704545]
[1730531729258,6.12359,166.72,166.68,17.06704545]
[1730531730651,0.12549,166.72,166.68,32.06584545]
[1730531733944,0.12549,166.72,166.68,20.9982]
[1730531734145,17.19123545,166.72,166.68,20.9982]
[1730531734553,6.12359,166.72,166.68,20.9982]
[1730531736868,6.12359,166.72,166.68,14.9988]
[1730531737088,17.19123545,166.72,166.68,14.9988]
[1730531740044,6.12359,166.72,166.68,14.9988]
[1730531741252,17.19123545,166.72,166.68,14.9988]
[1730531744279,104.84452945,166.71,166.66,6.0002]
[1730531744529,0.12549,166.7,166.66,17.06784545]
[1730531747856,17.06574545,166.72,166.66,32.06844545]
[1730531748137,0.12549,166.71,166.66,32.06844545]
[1730531749975,17.19163545,166.71,166.66,21.0008]
[1730531751287,87.19163545,166.71,166.66,21.0008]
[1730531751465,17.06644545,166.7,166.66,15.0006]
[1730531752461,81.19313545,166.69,166.65,6.25337827]
[1730531752779,11.06764545,166.67,166.63,21.0042]
[1730531753379,11.06764545,166.67,166.63,15.003]
[1730531753888,17.06754545,166.67,166.63,15.003]
[1730531757182,17.06754545,166.67,166.61,17.06954545]
[1730531757183,0.12549,166.66,166.61,17.06954545]
[1730531758258,81.06764545,166.65,166.6,33.32690541]
[1730531758460,11.19313545,166.64,166.6,16.0057]
[1730531758678,0.12549,166.64,166.6,27.07334545]
[1730531764283,23.902374,166.64,166.6,16.0057]
[1730531764481,29.903574,166.64,166.6,16.0057]
[1730531768092,40.97121945,166.64,166.6,1.0]
[1730531771590,11.06764545,166.63,166.6,1.0]
[1730531772101,7.17141685,166.62,166.6,1.0]
[1730531772287,7.17141685,166.61,166.6,1.0]
[1730531772664,7.1693572,166.61,166.6,1.0]
[1730531773681,118.14137665,166.61,166.6,1.0]
[1730531775501,124.28827665,166.61,166.6,1.0]
[1730531776375,124.27722846,166.61,166.6,1.0]
[1730531777681,124.27477288,166.61,166.6,1.0]
[1730531779706,124.26810376,166.61,166.6,1.0]
[1730531781215,144.36810376,166.61,166.6,1.0]
[1730531781674,124.26810376,166.61,166.6,1.0]
[1730531782502,117.11891945,166.61,166.6,1.0]
[1730531784677,124.25700697,166.61,166.6,1.0]
[1730531786115,117.11891945,166.61,166.6,1.0]
[1730531789006,81.06764545,166.65,166.6,18.06984545]
[1730531789306,87.06824545,166.65,166.6,12.06764545]
[1730531790401,0.12549,166.63,166.6,12.06764545]
[1730531791483,0.12549,166.63,166.61,11.06764545]
[1730531795307,0.12549,166.63,166.6,12.06764545]
[1730531798908,23.23994545,166.66,166.61,11.06764545]
[1730531799112,7.14248853,166.65,166.64,11.06764545]
[1730531799287,6.0,166.67,166.64,11.06764545]
[1730531799485,7.14338984,166.66,166.64,11.06764545]
[1730531799683,6.0,166.67,166.64,11.06764545]
[1730531799906,7.14338709,166.66,166.63,11.06764545]
[1730531800218,0.12549,166.66,166.62,11.06764545]
[1730531801609,29.902674,166.66,166.61,11.06764545]
[1730531801794,0.12549,166.64,166.61,11.06764545]
[1730531802013,0.12549,166.64,166.6,33.07594545]
[1730531803012,0.12549,166.64,166.61,11.06764545]
[1730531804427,6.0009,166.65,166.62,11.06764545]
[1730531805314,7.15377171,166.64,166.62,11.06764545]
[1730531805613,6.0009,166.65,166.62,11.06764545]
[1730531805818,7.15377171,166.64,166.62,11.06764545]
[1730531806022,6.0009,166.65,166.62,11.06764545]
[1730531806196,7.15377162,166.64,166.62,11.06764545]
[1730531806518,6.0009,166.65,166.61,17.06964545]
[1730531806816,0.12549,166.65,166.61,17.06964545]
[1730531807415,0.12549,166.65,166.62,11.06764545]
[1730531808254,5.9988,166.7,166.64,11.06764545]
[1730531808471,5.9988,166.7,166.66,11.06764545]
[1730531809525,0.12549,166.69,166.66,11.06764545]
[1730531810996,5.9984,166.71,166.67,11.06764545]
[1730531811192,0.12549,166.7,166.67,11.06764545]
[1730531813523,6.12429,166.7,166.66,11.06764545]
[1730531817210,6.12429,166.7,166.65,11.06764545]
[1730531818700,6.12429,166.7,166.65,17.06814545]
[1730531820605,17.19193545,166.7,166.64,11.06764545]
[1730531820817,11.06764545,166.69,166.64,11.06764545]
[1730531821811,17.06694545,166.69,166.64,17.06854545]
[1730531822321,5.9993,166.69,166.64,17.06854545]
[1730531824848,5.9993,166.69,166.64,17.04553545]
[1730531825319,5.9993,166.69,166.65,11.06764545]
[1730531826308,21.8249,166.75,166.67,11.06764545]
[1730531826309,23.776884,166.72,166.67,11.06764545]
[1730531826618,0.12549,166.71,166.68,11.06764545]
[1730531831022,4.47514408,166.7,166.68,11.06764545]
[1730531831228,4.47514408,166.69,166.68,11.06764545]
[1730531831619,4.47514408,166.69,166.67,11.06764545]
[1730531831826,4.47514408,166.68,166.67,11.06764545]
[1730531834037,4.47514408,166.68,166.66,11.06764545]
[1730531834219,17.19153545,166.71,166.66,11.06764545]
[1730531834421,4.4737219,166.7,166.66,11.06764545]
[1730531834620,4.4737219,166.69,166.66,11.06764545]
[1730531834824,4.4737219,166.69,166.64,15.0024]
[1730531834825,4.4737219,166.68,166.65,11.06764545]
[1730531835026,4.4737219,166.67,166.65,11.06764545]
[1730531835227,87.19153545,166.71,166.65,11.06764545]
[1730531835435,4.47402065,166.7,166.65,11.06764545]
[1730531835636,4.47402065,166.69,166.65,11.06764545]
[1730531835822,4.47402065,166.68,166.65,11.06764545]
[1730531836025,4.47402065,166.67,166.65,17.06814545]
[1730531836227,17.06654545,166.7,166.65,17.06814545]
[1730531836440,4.47412018,166.69,166.65,17.06814545]
[1730531836641,4.47409689,166.68,166.65,17.06814545]
[1730531836846,4.47409689,166.67,166.65,17.06814545]
[1730531837038,17.06654545,166.7,166.65,17.06814545]
[1730531837342,4.4741583,166.69,166.65,17.06814545]
[1730531837546,4.4741583,166.68,166.65,17.06814545]
[1730531837844,4.4741583,166.67,166.65,17.06814545]
[1730531838022,17.06654545,166.7,166.65,17.06814545]
[1730531838225,4.47449616,166.69,166.65,17.06814545]
[1730531838538,4.47449616,166.68,166.66,11.06764545]
[1730531838722,29.900374,166.72,166.67,11.06764545]
[1730531838924,4.47502814,166.71,166.67,11.06764545]
[1730531839127,4.47502814,166.7,166.69,11.06764545]
[1730531843450,4.47871564,166.7,166.68,11.06764545]
[1730531843639,4.47871564,166.69,166.68,11.06764545]
[1730531845549,4.47871564,166.69,166.68,17.06714545]
[1730531847110,17.06514545,166.74,166.68,17.06714545]
[1730531847233,4.48087272,166.73,166.68,11.06764545]
[1730531847461,17.06514545,166.74,166.68,11.06764545]
[1730531847650,4.4818114,166.73,166.68,11.06764545]
[1730531847930,4.4818114,166.72,166.68,11.06764545]
[1730531848242,4.4818114,166.71,166.68,11.06764545]
[1730531848443,4.4818114,166.7,166.69,5.9991]
[1730531849687,4.48313037,166.7,166.69,5.9991]
[1730531850549,17.06514545,166.74,166.69,5.9991]
[1730531850753,4.48325296,166.73,166.69,5.9991]
[1730531850928,4.48325296,166.72,166.69,5.9991]
[1730531851257,4.48325296,166.71,166.69,5.9991]
[1730531851439,5.9977,166.73,166.69,5.9991]
[1730531851627,4.4833051,166.72,166.69,5.9991]
[1730531851844,4.4833051,166.71,166.69,5.9991]
[1730531852044,4.4833051,166.7,166.69,5.9991]
[1730531853533,4.4833051,166.7,166.69,11.06764545]
[1730531854161,5.9977,166.73,166.69,11.06764545]
[1730531854339,4.4841531,166.7,166.69,11.06764545]
[1730531854536,4.4841531,166.72,166.69,11.06764545]
[1730531854854,4.4841531,166.71,166.69,11.06764545]
[1730531855153,4.4841531,166.7,166.69,11.06764545]
[1730531856441,4.4841531,166.7,166.69,17.06674545]
[1730531858367,5.9977,166.73,166.69,17.06674545]
[1730531858553,4.48608432,166.72,166.69,17.06674545]
[1730531858727,4.48608432,166.71,166.68,11.06764545]
[1730531858930,4.48608432,166.7,166.68,11.06764545]
[1730531859146,4.48608432,166.69,166.68,11.06764545]
[1730531859547,4.48608432,166.69,166.67,14.9997]
[1730531859729,4.48608432,166.68,166.67,14.9997]
[1730531861651,4.48774642,166.68,166.67,20.9995]
[1730531862758,4.48774642,166.68,166.67,11.06764545]
[1730531863852,4.48774642,166.68,166.67,17.06744545]
[1730531866466,4.48774642,166.68,166.66,11.06764545]
[1730531866647,4.48774642,166.67,166.65,11.06764545]
[1730531866852,4.48774642,166.66,166.65,11.06764545]
[1730531867038,4.48774642,166.66,166.65,17.06824545]
[1730531868458,4.49490233,166.66,166.65,32.06974545]
[1730531868883,4.49492543,166.66,166.65,32.06974545]
[1730531869053,8.98985085,166.66,166.65,32.06974545]
[1730531869357,4.49492542,166.66,166.65,32.06974545]
[1730531876550,4.4953848,166.66,166.65,32.06974545]
[1730531883156,4.4953848,166.66,166.65,21.0021]
[1730531883552,4.4953848,166.66,166.64,11.06764545]
[1730531883754,4.4953848,166.65,166.63,17.06884545]
[1730531883963,4.4953848,166.64,166.63,17.06884545]
[1730531884270,4.4969799,166.64,166.63,17.06884545]
[1730531885175,4.49627437,166.64,166.63,17.06884545]
[1730531888575,17.06674545,166.69,166.63,32.07214545]
[1730531888783,4.49522025,166.68,166.64,11.06764545]
[1730531889098,17.06674545,166.69,166.64,11.06764545]
[1730531889274,4.4952615,166.68,166.64,11.06764545]
[1730531889472,4.49507346,166.67,166.64,11.06764545]
[1730531889657,4.49507346,166.66,166.64,17.06854545]
[1730531889857,4.49507346,166.65,166.64,17.06854545]
[1730531891182,4.49507346,166.65,166.63,26.07094545]
[1730531891479,4.49507346,166.64,166.63,26.07094545]
[1730531892279,4.49507346,166.64,166.63,32.07224545]
[1730531893857,4.49507346,166.64,166.62,6.0016]
[1730531894062,4.49500838,166.63,166.61,17.31677187]
[1730531894264,4.49500838,166.62,166.61,23.31867187]
[1730531895803,33.20674545,166.66,166.61,23.31867187]
[1730531896002,4.49361963,166.62,166.61,23.31867187]
[1730531896183,4.49361963,166.65,166.61,23.31867187]
[1730531896364,4.49361963,166.64,166.61,23.31867187]
[1730531896562,4.49361963,166.63,166.61,23.31867187]
[1730531896759,4.49361963,166.62,166.61,23.31867187]
[1730531899700,4.49134783,166.62,166.61,23.31867187]
[1730531903423,4.48986452,166.62,166.61,23.31867187]
[1730531903821,4.48960569,166.62,166.61,23.31867187]
[1730531904872,4.48960569,166.62,166.61,23.32553499]
[1730531905394,4.48960569,166.62,166.61,6.24912642]
[1730531905691,4.48960569,166.62,166.6,1.0]
[1730531905884,4.48960569,166.61,166.6,1.0]
[1730531906996,4.48863034,166.61,166.6,1.0]
[1730531908887,15.56313891,166.61,166.6,1.0]
[1730531909091,36.92422891,166.61,166.6,1.0]
[1730531909466,25.84972034,166.61,166.6,1.0]
[1730531911591,36.92422891,166.61,166.6,1.0]
[1730531913271,25.84972034,166.61,166.6,1.0]
[1730531914310,25.84282937,166.61,166.6,1.0]
[1730531914980,36.91733794,166.61,166.6,1.0]
[1730531915287,36.92551255,166.61,166.6,1.0]
[1730531916691,36.92418076,166.61,166.6,1.0]
[1730531917992,113.02528076,166.61,166.6,1.0]
[1730531918308,156.80216476,166.61,166.6,1.0]
[1730531925107,156.79733293,166.61,166.6,1.0]
[1730531925521,152.32175718,166.61,166.6,1.0]
[1730531925795,4.47508693,166.61,166.6,18.08508318]
[1730531927999,4.47508693,166.61,166.6,12.08268318]
[1730531932421,4.47533602,166.61,166.6,12.08268318]
[1730531932702,4.47533602,166.63,166.6,12.08268318]
[1730531932889,4.47533602,166.62,166.6,12.08268318]
[1730531933088,4.47533602,166.61,166.6,12.08268318]
[1730531933289,4.47533602,166.63,166.6,12.08268318]
[1730531933507,4.47533602,166.62,166.6,12.08268318]
[1730531933691,4.47533602,166.61,166.6,12.08268318]
[1730531934007,4.47533602,166.63,166.6,12.08268318]
[1730531934304,4.47533602,166.62,166.6,1.0]
[1730531934506,4.47533602,166.61,166.6,1.0]
[1730531934709,6.0009,166.64,166.6,1.0]
[1730531934884,4.47590868,166.63,166.6,1.0]
[1730531935083,4.47590868,166.62,166.6,1.0]
[1730531935281,6.0009,166.64,166.6,1.0]
[1730531935507,4.4764055,166.63,166.6,1.0]
[1730531935705,4.4764055,166.62,166.6,1.0]
[1730531936022,6.0009,166.64,166.6,1.0]
[1730531936220,4.47642622,166.63,166.6,1.0]
[1730531936505,4.47642622,166.62,166.6,1.0]
[1730531936701,4.47642622,166.61,166.6,1.0]
[1730531937086,4.47642622,166.63,166.6,1.0]
[1730531937301,4.47642622,166.62,166.6,1.0]
[1730531937485,4.47642622,166.61,166.6,1.0]
[1730531938103,4.47642622,166.63,166.6,1.0]
[1730531938311,4.47642622,166.62,166.6,1.0]
[1730531938486,4.47642622,166.61,166.6,12.08268318]
[1730531938690,4.47642622,166.63,166.6,12.08268318]
[1730531938990,4.47642622,166.62,166.6,12.08268318]
[1730531939202,4.47642622,166.61,166.6,12.08268318]
[1730531939407,4.47642622,166.63,166.6,12.08268318]
[1730531939617,4.47642622,166.62,166.6,12.08268318]
[1730531939791,4.47642622,166.61,166.6,12.08268318]
[1730531940304,4.47642622,166.63,166.6,12.08268318]
[1730531940508,4.47642622,166.62,166.6,12.08268318]
[1730531940808,4.47642622,166.61,166.6,12.08268318]
[1730531941404,4.47642622,166.63,166.6,12.08268318]
[1730531941613,4.47642622,166.62,166.6,12.08268318]
[1730531941909,4.47642622,166.61,166.6,12.08268318]
[1730531942084,4.47642622,166.63,166.6,12.08268318]
[1730531942415,4.47964436,166.62,166.6,12.08268318]
[1730531942598,4.47964436,166.61,166.6,12.08268318]
[1730531942798,4.47964436,166.63,166.6,12.08268318]
[1730531942987,4.47964436,166.62,166.6,12.08268318]
[1730531943184,4.47964436,166.61,166.6,12.08268318]
[1730531943394,4.47964436,166.63,166.6,12.08268318]
[1730531943599,4.47964436,166.62,166.6,12.08268318]
[1730531943820,4.47964436,166.61,166.6,12.08268318]
[1730531944001,4.47964436,166.61,166.6,18.08508318]
[1730531944499,4.47964436,166.61,166.6,33.09108318]
[1730531944895,4.47964436,166.65,166.6,33.09108318]
[1730531945112,4.47964436,166.64,166.63,11.08268318]
[1730531945707,4.48173782,166.64,166.63,11.08268318]
[1730531948705,4.48173782,166.64,166.62,11.08268318]
[1730531949021,4.48173782,166.63,166.62,11.08268318]
[1730531950921,4.48466191,166.63,166.62,11.08268318]
[1730531958519,4.48938444,166.63,166.62,11.08268318]
[1730531969028,22.5593,166.66,166.62,11.08268318]
[1730531969236,4.49200282,166.63,166.62,11.08268318]
[1730531976837,4.49200282,166.63,166.62,17.08428318]
[1730531979875,4.49094187,166.63,166.62,32.08848318]
[1730531983172,27.8609,166.7,166.62,32.08848318]
[1730531983444,4.49042802,166.69,166.66,11.08268318]
[1730531983634,4.49042802,166.68,166.66,11.08268318]
[1730531983840,4.49042802,166.67,166.66,11.08268318]
[1730531984435,4.49042802,166.67,166.65,11.08268318]
[1730531984738,4.49042802,166.66,166.65,11.08268318]
[1730531990832,27.8609,166.7,166.65,11.08268318]
[1730531991029,4.48952534,166.69,166.66,11.08268318]
[1730531991337,4.48952534,166.68,166.66,11.08268318]
[1730531991541,4.48952534,166.67,166.66,11.08268318]
[1730531994115,27.8609,166.7,166.66,11.08268318]
[1730531994345,4.4890184,166.69,166.66,11.08268318]
[1730531994529,4.4890184,166.68,166.66,11.08268318]
[1730531994733,4.4890184,166.67,166.66,11.08268318]
[1730531997747,4.48844907,166.67,166.66,11.08268318]
[1730531997951,4.48844907,166.67,166.64,26.08508318]
[1730531998244,4.48844907,166.66,166.64,15.0024]
[1730531998573,4.48844907,166.65,166.64,15.0024]
[1730532000054,4.48844907,166.65,166.64,32.08598318]
[1730532000747,5.9991,166.69,166.64,32.08598318]
[1730532000945,5.9991,166.69,166.65,11.08268318]
[1730532001136,4.48867316,166.68,166.65,11.08268318]
[1730532001337,4.48867316,166.67,166.65,11.08268318]
[1730532001542,4.48867316,166.66,166.65,11.08268318]
[1730532002730,4.48867316,166.66,166.64,15.0024]
[1730532003050,5.9998,166.67,166.63,11.08268318]
[1730532003051,4.48867316,166.65,166.63,11.08268318]
[1730532003240,4.48867316,166.64,166.63,11.08268318]
[1730532003751,5.9998,166.67,166.63,11.08268318]
[1730532003935,4.48932544,166.64,166.63,11.08268318]
[1730532004742,4.48932544,166.64,166.6,39.32289654]
[1730532004936,4.48932544,166.63,166.6,39.32289654]
[1730532005238,4.48932544,166.62,166.6,33.09008318]
[1730532005433,4.48932544,166.61,166.6,33.09008318]
[1730532007160,4.48932544,166.61,166.6,1.0]
[1730532008248,10.49132544,166.61,166.6,1.0]
[1730532008443,4.48932544,166.61,166.6,1.0]
[1730532010649,6.0017,166.62,166.6,1.0]
[1730532010853,4.48729166,166.61,166.6,1.0]
[1730532012335,6.0017,166.62,166.6,1.0]